Workbook

Sheet Pollutant Load Calcs
B1: City of Bee Cave
B2: Pollutant Load Calculations - Version 4 (06/05/2026)
B4: (Requires User Input)
B6: STEP 1. ENTER SITE DATA
B7: Project Name:
B8: Drainage Area ID:
B9: Drainage Area to WQC (ac): | C9: 5
B10: Drainage Area to WQC (sf): | C10: =C9*43560 -> 217800
B11: Existing Impervious Cover to be left Undisturbed (sf): | C11: 10000
B12: Existing Impervious Cover to be Redeveloped (sf) | C12: 20000
B13: New Impervious Cover (sf): | C13: 10000
B14: Existing Condition Impervious Cover (%): | C14: =(C11+C12)/$C$10 -> 0.1377410468
B15: Undisturbed Existing Condition Impervious Cover (%): | C15: =C11/$C$10 -> 0.04591368228
B16: Redeveloped Existing Condition Impervious Cover (%) | C16: =C12/$C$10 -> 0.09182736455
B17: New Impervious Cover (%): | C17: =C13/$C$10 -> 0.04591368228 | F17: Advisory Note:
B18: Proposed Open Space Area to be Treated with Herbicides/Pesticides/Fertilizers (sf) | C18: 500
B19: Proposed Open Space Area to be Treated with Herbicides/Pesticides/Fertilizers (%) | C19: =C18/C10 -> 0.002295684114 | F19: =IF(C20>8000, "Water Quality Control must be sized for ALL Impervious Cover - Includes Existing Impervious Cover, Proposed New Impervious Cover, and Redeveloped Impervious Cover.", "Water Quality Control may be sized for Proposed New and Redeveloped Impervious Cover Only.") -> Water Quality Control must be sized for ALL Impervious Cover - Includes Existing Impervious Cover, Proposed New Impervious Cover, and Redeveloped Impervious Cover.
B20: Total Impervious Cover (sf) | C20: =SUM(C11,C13,C12) -> 40000
B21: Total Impervious Cover (%) | C21: =$C$20/$C$10 -> 0.1836547291
B22: WQV Sizing Check-Point: Impervious Cover (sf) to use in WQV calcs | C22: =IF(C20>=8000,C11+C13+C12,C13+C12) -> 40000
B23: *Water Quality Volume sizing check is based on COBC UDC 7.3.2 J.2
B25: STEP 2. DETERMINE POLLUTANT LOADING
B26: Pollutant | C26: Pre-Developed Loading, Lpre (lb/yr) | D26: Developed Loading, Ldev (lb/yr)
B27: Total Suspended Solids (TSS) | C27: =IF($C$14=0,'Lookup Tab'!C4,'Lookup Tab'!D4)*Interpolate('Lookup Tab'!$B$28:$B$48,'Lookup Tab'!$F$28:$F$48,$C$14,0)*$C$9*0.2267 -> 225.969439 | D27: =VLOOKUP($B27,'Lookup Tab'!$B$4:$D$6,3,FALSE)*Interpolate('Lookup Tab'!$B$28:$B$48,'Lookup Tab'!$F$28:$F$48,($C$14+$C$19+$C$17)*100,0)*$C$9*0.2267 -> 807.4905989
B28: Total Phosphorus (TP) | C28: =IF($C$14=0,'Lookup Tab'!C5,'Lookup Tab'!D5)*Interpolate('Lookup Tab'!$B$28:$B$48,'Lookup Tab'!$F$28:$F$48,$C$14,0)*$C$9*0.2267 -> 0.5390596255 | D28: =VLOOKUP($B28,'Lookup Tab'!$B$4:$D$6,3,FALSE)*Interpolate('Lookup Tab'!$B$28:$B$48,'Lookup Tab'!$F$28:$F$48,($C$16+$C$19+$C$17)*100,0)*$C$9*0.2267 -> 1.551567775
B29: Oil and Grease (O&G) | C29: =IF($C$14=0,'Lookup Tab'!C6,'Lookup Tab'!D6)*Interpolate('Lookup Tab'!$B$28:$B$48,'Lookup Tab'!$F$28:$F$48,$C$14,0)*$C$9*0.2267 -> 6.806308402 | D29: =VLOOKUP($B29,'Lookup Tab'!$B$4:$D$6,3,FALSE)*Interpolate('Lookup Tab'!$B$28:$B$48,'Lookup Tab'!$F$28:$F$48,($C$16+$C$19+$C$17)*100,0)*$C$9*0.2267 -> 19.5905022
B30: *Pollutant loading: Equation 1 from COA ECM 1.6.9.3.B
B31: L = C*V*An*CF
B32: Where:
B33: L = Pollutant load (lb/yr)
B34: C = Pollutant concentration (mg/L), see 'Lookup' tab
B35: V = Annual runoff volume (in/yr), see 'Lookup' tab
B36: An = Area of drainage area (acres), see COA ECM Section 1.6.9.3.B.2
B37: CF = Conversion factor CF (pollutant in mg/L) = 0.2267 (lb-L/mg-Ac-in)
B39: * Zinc is not included in the analysis because it's not a common pollutant linked to development. However, zinc will need to be mitigated for if using crumb rubber for artificial turf installations.
B41: STEP 3. DETERMINE WQC POLLUTANT LOAD REMOVAL EFFICIENCIES
B42: WQC Order in Series | C42: WQC Type | E42: Removal Efficiency (%)
E43: TSS | F43: TP | G43: O&G
B44: 1 | C44: None | E44: =VLOOKUP($C44,'Lookup Tab'!$B$10:$E$20,2,FALSE) -> 0 | F44: =VLOOKUP($C44,'Lookup Tab'!$B$10:$E$20,3,FALSE) -> 0 | G44: =VLOOKUP($C44,'Lookup Tab'!$B$10:$E$20,4,FALSE) -> 0
B45: 2 | C45: None | E45: =VLOOKUP($C45,'Lookup Tab'!$B$10:$E$20,2,FALSE) -> 0 | F45: =VLOOKUP($C45,'Lookup Tab'!$B$10:$E$20,3,FALSE) -> 0 | G45: =VLOOKUP($C45,'Lookup Tab'!$B$10:$E$20,4,FALSE) -> 0
B46: 3 | C46: None | E46: =VLOOKUP($C46,'Lookup Tab'!$B$10:$E$20,2,FALSE) -> 0 | F46: =VLOOKUP($C46,'Lookup Tab'!$B$10:$E$20,3,FALSE) -> 0 | G46: =VLOOKUP($C46,'Lookup Tab'!$B$10:$E$20,4,FALSE) -> 0
B47: TOTAL EFFICIENCY | E47: =(1-(1-$E$44/100)*(1-0.65*$E$45/100)*(1-0.25*$E$46/100))*100 -> 0 | F47: =(1-(1-$F$44/100)*(1-0.65*$F$45/100)*(1-0.25*$F$46/100))*100 -> 0 | G47: =(1-(1-$G$44/100)*(1-0.65*$G$45/100)*(1-0.25*$G$46/100))*100 -> 0
B49: *TSS removal efficiency and O&G (not explicity stated, but related to TSS) are from TCEQ RG-348 Table 3-1, page 3-4
B50: **TP removal is from LCRA Technical Manual Table 2-6, page 2-11
B51: ***Removal Efficiency Equation from COBC ECM Section 1.6.2.G: Water Quality Facilities In Series
B55: Where
B56: ETOT = Total efficiency (%)
B57: E1 = Efficiency of first WQC in series (%)
B58: E2 = Efficiency of second WQC in series (%)
B59: E3 = Efficiency of third WQC in series (%)
B61: STEP 4. CALCULATE TOTAL POLLUTANT LOAD REMOVAL
B62: Pollutant | C62: Required Removal* | E62: Total WQC Removal** | G62: Meets Criteria?
C63: (%) | D63: (lb/yr) | E63: (%) | F63: (lb/yr)
B64: Total Suspended Solids (TSS) | C64: 90 | D64: =IF(AND($C$14=0,$C$17=0),$C27,($C64/100)*($D27-$C27)) -> 523.369044 | E64: =$E$47 -> 0 | F64: =E64/100*D27 -> 0 | G64: =IF(F64>=D64, "YES", "NO") -> NO
B65: Total Phosphorus (TP) | C65: 90 | D65: =IF(AND($C$14=0,$C$17=0),$C28,($C65/100)*($D28-$C28)) -> 0.9112573342 | E65: =$F$47 -> 0 | F65: =E65/100*D28 -> 0 | G65: =IF(F65>=D65, "YES", "NO") -> NO
B66: Oil and Grease (O&G) | C66: 90 | D66: =IF(AND($C$14=0,$C$17=0),$C29,($C66/100)*($D29-$C29)) -> 11.50577442 | E66: =$G$47 -> 0 | F66: =E66/100*D29 -> 0 | G66: =IF(F66>=D66, "YES", "NO") -> NO
B67: *Removal requirements per Article 7, Section 7.3.2.C of City of Bee Cave UDC (% removal of increased loading from development)
B68: **Amount removed by WQC per year equation: R = Ldev*(ETOT/100)

Sheet Lookup Tab
B2: Table 1. Pollutant Loading Concentrations
B3: Pollutant | C3: Background Concentration, Cback (mg/L) | D3: Pollutant Concentration, C (mg/L) | E3: Source
B4: Total Suspended Solids (TSS) | C4: 166 | D4: 166 | E4: City of Bee Cave ECM 1.6.9.A
B5: Total Phosphorus (TP) | C5: 0.124 | D5: 0.396 | E5: City of Bee Cave ECM 1.6.9.A
B6: Oil and Grease (O&G) | C6: 0 | D6: 5 | E6: City of Bee Cave TCSS Manual Section 5, Page 7 not in current ECM
B8: Table 2. WQC Removal Efficiency
B9: Type | C9: TSS | D9: TP | E9: O&G
B10: None | C10: 0 | D10: 0 | E10: =C10 -> 0
B11: Bioretention | C11: 89 | D11: 72 | E11: =C11 -> 89
B12: Sand Filter | C12: 89 | D12: 55 | E12: 89
B13: Vegetative Filter Strip | C13: 85 | D13: 70 | E13: 85
B14: Infiltration/Trench basin | C14: 90 | D14: 90 | E14: =C14 -> 90
B15: Retention/Irrigation | C15: 100 | D15: 90 | E15: 100
B16: Extended Detention | C16: 75 | D16: 45 | E16: 75
B17: Wet Pond/Wetland Basin | C17: 93 | D17: 65 | E17: 93
B18: Full Infiltration Rain Garden | C18: 100 | D18: 100 | E18: 100
B19: Filterra | C19: 85 | D19: 66 | E19: 89
B20: Jellyfish | C20: 85 | D20: 60 | E20: 60
B21: *TSS removal efficiency and O&G (not explicity stated, but related to TSS) are from TCEQ RG-348 Table 3-1, page 3-4
B22: **TP removal is from LCRA Technical Manual Table 2-6, page 2-11
B24: Note: The COA ECM (1.6.9.3.D.2) gives equations for removal efficiency, rather than standard values, so the actual specs of the WQC would need to be know in order to calculate efficiencies.
B26: Table 3. Annual Runoff Coefficient Values for Developed Conditions
B27: Impervious Cover, IC (%) | C27: Runoff-Rainfall Ratio, Rv | D27: Depression Storage, Sd (in) | E27: Annual Number of Runoff Events, θ | F27: Annual Runoff, V (in/yr)
B28: 0 | C28: 0.064 | D28: 0.218 | E28: 46 | F28: 1.18
B29: 5 | C29: 0.1 | D29: 0.198 | E29: 48.4 | F29: 1.94
B30: 10 | C30: 0.136 | D30: 0.18 | E30: 50.6 | F30: 2.76
B31: 15 | C31: 0.172 | D31: 0.163 | E31: 52.8 | F31: 3.63
B32: 20 | C32: 0.208 | D32: 0.148 | E32: 54.8 | F32: 4.55
B33: 25 | C33: 0.243 | D33: 0.134 | E33: 56.7 | F33: 5.52
B34: 30 | C34: 0.279 | D34: 0.122 | E34: 58.5 | F34: 6.54
B35: 35 | C35: 0.315 | D35: 0.11 | E35: 60.2 | F35: 7.59
B36: 40 | C36: 0.351 | D36: 0.1 | E36: 61.8 | F36: 8.67
B37: 45 | C37: 0.387 | D37: 0.091 | E37: 63.2 | F37: 9.78
B38: 50 | C38: 0.423 | D38: 0.082 | E38: 64.6 | F38: 10.91
B39: 55 | C39: 0.458 | D39: 0.075 | E39: 65.8 | F39: 12.06
B40: 60 | C40: 0.494 | D40: 0.068 | E40: 66.9 | F40: 13.23
B41: 65 | C41: 0.53 | D41: 0.062 | E41: 68 | F41: 14.42
B42: 70 | C42: 0.566 | D42: 0.056 | E42: 69 | F42: 15.61
B43: 75 | C43: 0.602 | D43: 0.051 | E43: 69.9 | F43: 16.82
B44: 80 | C44: 0.637 | D44: 0.046 | E44: 70.7 | F44: 18.03
B45: 85 | C45: 0.673 | D45: 0.042 | E45: 71.5 | F45: 19.24
B46: 90 | C46: 0.709 | D46: 0.038 | E46: 72.2 | F46: 20.46
B47: 95 | C47: 0.745 | D47: 0.034 | E47: 72.8 | F47: 21.69
B48: 100 | C48: 0.781 | D48: 0.031 | E48: 73.4 | F48: 22.91
B49: *Source: Table 1-9, COBC ECM 1.6.9.A
B51: Table 4. COA Effluent Concentrations for Approved WQCs
B52: Pollutant | C52: Unit | D52: Ceff
D53: Infiltration Field1 | E53: Retention Basin2 and Rain Gardens without Underdrain | F53: Rainwater Harvesting2 | G53: Sedimentation/Filtration | H53: Biofiltration3
B54: COD (Chemical Oxygen Demand) | C54: mg/L | D54: 38.9 | E54: 43.79 | F54: 43.79 | G54: 22.4 | H54: 22.4
B55: Ec (Exherichia coli) | C55: CFU/100 mL | D55: 8370 | E55: 11065 | F55: 11065 | G55: 4895 | H55: 4895
B56: Pb (Total Lead) | C56: mg/L | D56: 0.00428 | E56: 0.00831 | F56: 0.00831 | G56: 0.00574 | H56: 0.00574
B57: TN (Total Nitrogen) | C57: mg/L | D57: 1.19 | E57: 1.42 | F57: 1.42 | G57: 1.07 | H57: 1.07
B58: TOC (Total Organic Carbon) | C58: mg/L | D58: 13.03 | E58: 11.45 | F58: 11.45 | G58: 7.33 | H58: 7.33
B59: TP (Total Phosphorus) | C59: mg/L | D59: 0.124 | E59: 0.224 | F59: 0.224 | G59: 0.099 | H59: 0.099
B60: TSS (Total Suspended Solids) | C60: mg/L | D60: 166 | E60: 134 | F60: 134 | G60: 20.62 | H60: 20.62
B61: Zn (Zinc) | C61: mg/L | D61: 0.0236 | E61: 0.0453 | F61: 0.0453 | G61: 0.023 | H61: 0.023
B62: *Source: COA WPD. CM-13-02
B63: 1. The infiltrated fraction is assumed to achieve background, or undeveloped, loads.
B64: 2. These WQCs, given sufficient settling time, are assumed comparable to sedimentation basins.
B65: 3. These WQCs are assumed comparable to sedimentation/filtration basins.
